bitfinex-derivatives/quotes_BNBF0:USTF0_20250709
["timestamp","ask_amount","ask_price","bid_price","bid_amount"]
[1752049486693,1.6886916,661.97,661.43,1.6934334]
[1752049487296,1.6886916,661.97,661.44,1.6934334]
[1752049489396,1.6886916,661.96,661.45,1.6934334]
[1752049489699,1.6886916,661.97,661.45,1.6934334]
[1752049490500,1.6913077,661.96,661.45,1.6960636]
[1752049491496,1.6913077,661.96,661.39,1.706]
[1752049491497,1.6913077,661.95,661.46,1.6960636]
[1752049492501,1.6913077,661.97,661.43,1.6960636]
[1752049492702,1.6913077,661.98,661.43,1.6960636]
[1752049493398,1.6913077,661.97,661.44,1.6960636]
[1752049495304,1.6913077,661.97,661.45,1.6960636]
[1752049495498,1.6913077,661.96,661.45,1.6960636]
[1752049501606,1.6913077,661.97,661.44,1.6960636]
[1752049502413,1.6913077,661.95,661.47,1.6960636]
[1752049503108,1.6913077,661.94,661.48,1.6960636]
[1752049504509,1.6913077,661.94,661.47,1.6960636]
[1752049505310,1.6913077,661.94,661.48,1.6960636]
[1752049505509,2.259944,662.06,661.39,1.706]
[1752049505510,1.6913077,661.95,661.47,1.6960636]
[1752049507215,1.6913077,661.94,661.47,1.6960636]
[1752049508116,1.6913077,661.94,661.48,1.6960636]
[1752049508912,1.6913077,661.93,661.49,1.6960636]
[1752049511312,1.6913077,661.92,661.5,1.6960636]
[1752049511612,1.6913077,661.93,661.49,1.6960636]
[1752049512713,1.6913077,661.92,661.49,1.6960636]
[1752049513417,1.6913077,661.92,661.5,1.6960636]
[1752049513620,1.6913077,661.91,661.51,1.6960636]
[1752049514720,1.6913077,661.91,661.52,1.719]
[1752049515421,1.6913077,661.9,661.52,3.4150636]
[1752049516323,1.6913077,661.9,661.53,1.6960636]
[1752049517624,1.6913077,661.89,661.53,1.6960636]
[1752049518426,1.6913077,661.89,661.52,1.719]
[1752049518427,1.6913077,661.89,661.54,1.6960636]
[1752049519423,1.6913077,661.87,661.55,1.6960636]
[1752049520628,1.6913077,661.9,661.52,1.719]
[1752049530436,1.6913077,661.87,661.55,1.6960636]
[1752049542654,2.259944,661.98,661.52,1.719]
[1752049542845,1.6954741,661.87,661.55,1.7000542]
[1752049545544,1.6954738,661.87,661.55,1.7000539]
[1752049546447,7.909807,662.74,661.52,1.719]
[1752049546448,1.6954738,661.88,661.54,1.7000539]
[1752049547547,1.6954738,661.88,661.53,1.7000539]
[1752049547849,1.6954738,661.88,661.54,1.7000539]
[1752049549352,1.6954738,661.88,661.55,1.7000539]
[1752049551250,1.6954738,661.87,661.55,1.7000539]
[1752049558660,2.259944,661.98,661.55,1.7000532]
[1752049558862,1.6952938,661.87,661.55,1.7000532]
[1752049565562,1.6952938,661.88,661.54,1.7000532]
[1752049567465,1.6952938,661.89,661.53,1.7000532]
[1752049567965,1.6952938,661.88,661.53,1.7000532]
[1752049569166,1.6952938,661.88,661.54,2.528]
[1752049569469,1.6952938,661.89,661.54,2.528]
[1752049571770,1.6952938,661.9,661.54,2.528]
[1752049573069,1.6952938,661.89,661.54,2.528]
[1752049577266,1.6952938,661.88,661.54,2.528]
[1752049577970,1.6952938,661.89,661.54,2.528]
[1752049581574,1.6952938,661.88,661.54,2.528]
[1752049581769,1.6952938,661.88,661.54,4.2280532]
[1752049582174,1.6952938,661.89,661.54,2.528]
[1752049583272,1.6952938,661.9,661.54,2.528]
[1752049585475,1.6952938,661.91,661.54,2.528]
[1752049591882,5.649862,662.75,661.54,2.528]
[1752049591883,1.6952938,661.9,661.54,2.528]
[1752049592488,1.6952938,661.91,661.54,2.528]
[1752049592885,1.6952938,661.92,661.54,2.528]
[1752049593286,1.6952938,661.91,661.54,2.528]
[1752049595393,1.6952938,661.91,661.5,1.7000532]
[1752049595589,1.6952938,661.9,661.51,1.7000532]
[1752049597593,1.6952938,661.9,661.52,2.265]
[1752049602194,1.6952938,661.89,661.52,3.9650532]
[1752049602694,1.6952938,661.87,661.55,1.7000532]
[1752049609201,1.6952938,661.88,661.54,1.7000532]
[1752049609701,1.6952938,661.88,661.55,1.7000532]
[1752049611806,1.6952938,661.87,661.55,1.7000532]
[1752049615104,1.6952938,661.87,661.56,1.756]
[1752049618111,1.6952938,661.97,661.56,1.756]
[1752049622212,1.6952938,661.98,661.56,1.756]
[1752049628017,1.6952938,661.92,661.56,1.756]
[1752049630214,1.6952938,661.93,661.56,1.756]
[1752049632218,1.6952938,661.92,661.56,1.756]
[1752049634724,1.6952938,661.91,661.56,1.756]
[1752049636928,1.6952938,661.9,661.56,1.756]
[1752049637424,1.6952938,662.02,661.56,1.756]
[1752049638127,1.6952938,662.02,661.38,0.26288753]
[1752049639531,2.259944,662.26,661.38,0.26288753]
[1752049639730,7.909807,663.96,661.38,0.26288753]
[1752049647127,1.6959553,662.02,661.39,2.297]
[1752049647332,1.6959553,662.02,661.47,1.7000194]
[1752049647627,1.6959553,661.93,661.46,1.7000194]
[1752049651432,1.6959553,661.88,661.55,1.7000194]
[1752049651729,1.6959553,661.87,661.55,1.7000194]
[1752049652634,1.6959553,661.9,661.51,1.7000194]
[1752049653336,1.6959553,661.89,661.52,1.7000194]
[1752049659141,1.6959553,661.9,661.51,1.7000194]
[1752049661937,1.6959553,661.91,661.5,1.7000194]
[1752049662442,1.6959553,661.9,661.51,1.7000194]
[1752049666141,1.6959553,661.9,661.5,1.7000194]
[1752049667243,1.6959553,661.91,661.49,1.7000194]
[1752049668547,1.6959553,661.91,661.5,1.7000194]
[1752049669046,1.6959553,661.9,661.5,1.7000194]
[1752049670150,1.6959553,661.93,661.47,1.7000194]
[1752049671348,2.2612738,662.09,661.47,1.7000194]
[1752049671349,1.6959553,661.92,661.47,1.7000194]
[1752049672245,1.6959553,661.92,661.48,1.7000194]
[1752049672749,1.6959553,661.92,661.47,1.7000194]
[1752049676046,1.6959553,661.92,661.48,1.7000194]
[1752049676950,1.6959553,661.92,661.47,1.7000194]
[1752049677250,1.6959553,661.92,661.48,1.7000194]
[1752049680155,1.6959553,661.9,661.51,1.7000194]
[1752049681653,1.6959553,661.89,661.52,1.7000194]
[1752049682053,1.6959553,661.89,661.53,1.7000194]
[1752049683854,1.6959553,661.9,661.52,1.7000194]
[1752049685558,1.6959553,661.91,661.51,1.7000194]
[1752049689860,1.6959553,661.9,661.52,1.7000194]
[1752049690656,1.6959553,661.91,661.51,1.7000194]
[1752049692157,1.6959553,661.92,661.5,1.7000194]
[1752049693660,1.6959553,661.91,661.51,1.7000194]
[1752049694360,1.6959553,661.92,661.5,1.7000194]
[1752049695861,1.6959553,661.92,661.38,0.26288753]
[1752049695862,1.6959553,661.92,661.51,1.7000194]
[1752049696264,1.6959553,661.91,661.51,1.7000194]
[1752049697066,1.6959553,661.91,661.52,2.234]
[1752049700673,1.6959553,661.91,661.52,3.9340194]
[1752049700970,1.6959553,661.92,661.52,2.234]
[1752049702070,1.6959553,661.91,661.52,2.234]
[1752049703572,1.6959553,661.91,661.52,3.9340194]
[1752049708270,1.6959553,661.9,661.53,1.7000194]
[1752049708475,1.6959553,661.9,661.54,1.7000194]
[1752049708673,1.6959553,661.89,661.54,1.7000194]
[1752049708974,1.6959553,661.9,661.54,1.7000194]
[1752049710671,1.6959553,661.89,661.54,1.7000194]
[1752049710971,1.6959553,661.88,661.56,1.7000194]
[1752049715676,1.6959553,661.88,661.55,1.7000194]
[1752049716276,1.6959553,661.9,661.53,1.7000194]
[1752049718180,1.6959553,661.91,661.52,2.234]
[1752049719681,1.6959553,661.92,661.52,2.234]
[1752049726191,1.6959553,661.91,661.52,3.9340194]
[1752049727989,5.6531846,662.7,661.52,3.9340194]
[1752049727990,1.6959553,661.9,661.53,1.7000194]
[1752049729391,1.6959553,661.89,661.54,1.7000194]
[1752049729595,1.6959553,661.88,661.56,1.7000194]
[1752049732795,5.6531846,662.53,661.54,1.7000194]
[1752049732796,1.6959553,661.9,661.54,1.7000194]
[1752049733795,1.6959553,661.89,661.54,1.7000194]
[1752049734695,7.9144584,662.84,661.52,2.234]
[1752049734696,1.6959553,661.93,661.52,2.234]
[1752049736100,1.6959553,661.93,661.49,1.7000194]
[1752049736703,1.6959553,661.92,661.49,1.7000194]
[1752049737709,1.6959553,661.95,661.46,1.7000194]
[1752049739009,1.6959553,661.95,661.47,1.662]
[1752049741110,1.6960628,661.95,661.47,1.662]
[1752049743012,1.6960628,662.05,661.47,1.662]
[1752049743211,1.6960628,662.03,661.47,3.3619276]
[1752049743411,1.6960628,662.15,661.54,1.6999276]
[1752049743715,1.6960628,662.15,661.47,1.662]
[1752049743716,1.6960628,662.2,661.59,1.6999276]
[1752049744214,1.6960628,662.22,661.57,1.6999276]
[1752049744411,1.6960628,662.22,661.58,1.6999276]
[1752049745414,1.6960628,662.23,661.57,1.6999276]
[1752049745616,1.6960628,662.23,661.56,1.6999276]
[1752049746317,1.6960628,662.24,661.55,1.6999276]
[1752049747217,1.6960628,662.25,661.54,1.6999276]
[1752049748117,1.6960628,662.24,661.55,1.6999276]
[1752049748319,1.6960628,662.25,661.54,1.6999276]
[1752049749416,1.6960628,662.26,661.54,1.6999276]
[1752049751321,1.6960628,662.22,661.6,1.6999276]
[1752049752322,1.6960628,662.23,661.59,1.6999276]
[1752049752517,1.6960628,662.21,661.62,1.6999276]
[1752049753124,1.6960628,662.19,661.64,1.6999276]
[1752049753424,1.6960628,662.2,661.64,1.6999276]
[1752049755421,1.6960628,662.2,661.63,1.6999276]
[1752049756123,1.6960628,662.21,661.63,1.6999276]
[1752049756421,1.6960628,662.2,661.64,1.6999276]
[1752049757425,1.6960628,662.21,661.63,1.6999276]
[1752049759329,1.6960628,662.22,661.63,1.6999276]
[1752049759827,1.6960628,662.23,661.61,1.6999276]
[1752049760927,1.6960628,662.23,661.62,1.6999276]
[1752049762532,1.6960628,662.23,661.61,1.6999276]
[1752049763134,2.2612738,662.35,661.49,2.2666925]
[1752049763334,1.6896008,662.24,661.61,1.6922208]
[1752049765131,1.6896008,662.25,661.59,1.6922208]
[1752049766939,1.6896008,662.25,661.58,1.6922208]
[1752049769740,1.6896008,662.25,661.47,1.662]
[1752049769741,1.6896008,662.24,661.59,1.6922208]
[1752049773151,1.6896008,662.24,661.6,1.6922208]
[1752049774949,1.6896008,662.23,661.61,1.6922208]
[1752049775353,1.6896008,662.23,661.51,2.2666925]
[1752049775354,1.6896008,662.22,661.62,1.6922208]
[1752049776955,1.6896008,662.22,661.63,2.629]
[1752049778762,1.6896008,662.23,661.63,2.629]
[1752049779362,1.6896008,662.22,661.63,2.629]
[1752049779863,1.6896008,662.23,661.63,2.629]
[1752049780363,1.6896008,662.22,661.63,2.629]
[1752049784766,1.6896008,662.23,661.63,2.629]
[1752049786567,1.6896008,662.22,661.63,2.629]
[1752049788667,1.6896008,662.21,661.63,2.629]
[1752049788964,1.6896008,662.25,661.54,1.6922208]
[1752049789368,1.6896008,662.25,661.55,1.6922208]
[1752049790370,1.6896008,662.24,661.55,1.6922208]
[1752049791565,1.6896008,662.24,661.56,1.6922208]
[1752049791969,1.6896008,662.24,661.57,2.072]
[1752049792470,1.6896008,662.23,661.57,2.072]
[1752049793466,1.6896008,662.23,661.57,3.7642208]
[1752049794672,1.6896008,662.22,661.58,1.6922208]
[1752049795273,1.6896008,662.21,661.59,1.6922208]
[1752049795572,1.6896008,662.22,661.58,1.6922208]
[1752049796669,1.6896008,662.21,661.59,1.6922208]
[1752049797477,1.6896008,662.2,661.6,1.6922208]
[1752049798372,1.6896008,662.19,661.61,1.6922208]
[1752049798774,1.6896008,662.16,661.65,1.6922208]
[1752049798979,1.6896008,662.16,661.66,1.6922208]
[1752049799374,1.6896008,662.15,661.67,1.6922208]
[1752049799875,1.6896008,662.17,661.64,1.6922208]
[1752049801578,1.6896008,662.16,661.64,1.6922208]
[1752049802280,1.6896008,662.14,661.67,1.6922208]
[1752049803474,1.6896008,662.12,661.69,1.6922208]
[1752049805376,1.6896008,662.12,661.7,1.6922208]
[1752049806676,1.6896008,662.12,661.69,1.6922208]
[1752049807680,1.6896008,662.12,661.7,1.6922208]
[1752049808878,1.6896008,662.12,661.69,1.6922208]
[1752049809584,1.6896008,662.11,661.71,1.6922208]
[1752049811384,1.6896008,662.09,661.73,1.6922208]
[1752049817090,1.6896008,662.09,661.74,1.6922208]
[1752049818389,1.6896008,662.1,661.73,1.6922208]
[1752049818887,1.6896008,662.09,661.73,1.6922208]
[1752049819989,1.6896008,662.09,661.57,2.072]
[1752049819990,1.6896008,662.09,661.74,1.6922208]
[1752049821695,1.6896008,662.1,661.72,1.6922208]
[1752049823095,1.6896008,662.11,661.71,1.6922208]
[1752049826194,1.6896008,662.09,661.7,1.6922208]
[1752049826397,1.6896008,662.09,661.69,1.6922208]
[1752049826897,1.6896008,662.08,661.69,1.6922208]
[1752049827395,1.6896008,662.1,661.67,1.6922208]
[1752049827692,1.6896008,662.03,661.6,1.6922208]
[1752049828398,1.6896008,662.04,661.59,1.6922208]
[1752049829399,1.6896008,662.05,661.58,1.6922208]
[1752049829699,1.6896008,662.04,661.58,1.6922208]
[1752049830700,1.6896008,661.99,661.57,2.072]
[1752049831100,1.6896008,661.95,661.57,2.072]
[1752049831596,1.6896008,661.97,661.57,2.072]
[1752049832400,1.6896008,661.98,661.57,2.072]
[1752049833098,1.6896008,661.97,661.57,2.072]
[1752049833296,1.6896008,661.98,661.57,2.072]
[1752049833496,1.6896008,661.96,661.57,2.072]
[1752049834500,1.6896008,661.97,661.57,2.072]
[1752049835100,1.6896008,661.98,661.57,2.072]
[1752049836197,1.6896008,661.99,661.57,2.072]
[1752049836998,1.6896008,662.0,661.46,0.26291633]
[1752049837196,1.6896008,662.01,661.46,0.26291633]
[1752049837400,1.6896008,662.0,661.46,0.26291633]
[1752049838297,1.6896008,662.01,661.46,0.26291633]
[1752049839202,1.6896008,662.0,661.46,0.26291633]
[1752049839702,1.6896008,662.0,661.47,1.983]
[1752049839902,1.6896008,662.01,661.47,1.983]
[1752049841505,1.6896008,662.0,661.47,1.983]
[1752049842104,1.6896008,662.01,661.47,1.983]
[1752049844507,1.6896008,662.03,661.47,1.983]
[1752049844710,1.6896008,662.04,661.47,1.983]
[1752049846414,1.6896008,662.15,661.47,1.983]
[1752049847110,1.6896008,662.16,661.47,1.983]
[1752049847311,1.6896008,662.17,661.47,1.983]
[1752049848013,1.6896008,662.18,661.47,1.983]
[1752049848218,2.2612738,662.43,661.47,1.983]
[1752049848219,1.6896008,662.19,661.47,1.983]
[1752049848413,1.6896008,662.18,661.47,1.983]
[1752049851218,1.6896008,662.12,661.47,1.983]
[1752049856027,1.6896008,662.11,661.47,1.983]
[1752049856923,1.6896008,662.11,661.35,0.26294712]
[1752049857227,1.6896008,662.07,661.38,1.6922208]
[1752049858326,1.6896008,662.05,661.4,1.6922208]
[1752049858530,1.6896008,662.07,661.37,1.6922208]
[1752049859529,1.6896008,662.06,661.39,1.6922208]
[1752049859730,1.6896008,662.06,661.4,1.6922208]
[1752049860129,1.6896008,662.05,661.41,2.397]
[1752049860630,1.6896008,662.06,661.41,2.397]
[1752049861030,1.6896008,662.07,661.41,2.397]
[1752049861630,7.9144584,663.17,661.41,2.397]
[1752049861631,1.6896008,662.08,661.41,2.397]
[1752049868130,1.6896008,662.07,661.41,2.397]
[1752049869433,1.6896008,662.06,661.41,2.397]
[1752049870533,1.6896008,662.05,661.41,4.0892208]
[1752049870933,1.6896008,662.05,661.41,2.397]
[1752049871438,1.6896008,662.04,661.42,1.6922208]
[1752049873133,1.6896008,662.05,661.41,2.397]
[1752049873740,1.6896008,662.04,661.41,4.0892208]
[1752049873939,1.6896008,662.04,661.42,1.6922208]
[1752049876137,1.6896008,662.03,661.43,1.6922208]
[1752049877239,1.6896008,662.02,661.43,1.6922208]
[1752049877443,1.6896008,662.02,661.44,1.6922208]
[1752049880445,1.6896008,662.01,661.45,1.6922208]
[1752049881041,1.6896008,662.01,661.46,1.6922208]
[1752049881447,1.6896008,662.0,661.46,1.6922208]
[1752049882343,1.6896008,662.0,661.47,1.6922208]
[1752049883044,1.6896008,661.98,661.5,1.6922208]
[1752049883348,1.6896008,661.97,661.5,1.6922208]
[1752049884349,1.6896008,661.96,661.51,1.6922208]
[1752049885352,1.6896008,661.95,661.52,1.6922208]
[1752049886248,1.6896008,661.94,661.53,1.6922208]
[1752049887247,1.6896008,661.93,661.55,1.6922208]
[1752049888348,1.6896008,661.92,661.55,1.6922208]
[1752049889351,1.6896008,661.91,661.56,1.6922208]
[1752049890350,1.6896008,661.9,661.57,1.6922208]
[1752049895556,1.6896008,661.9,661.41,2.397]
[1752049895557,1.6896008,661.9,661.56,1.6922208]
[1752049895958,1.6896008,661.91,661.56,1.6922208]
[1752049896552,5.6531846,662.59,661.54,1.6922208]
[1752049896553,1.6896008,661.92,661.54,1.6922208]
[1752049898659,1.6896008,661.93,661.52,1.6922208]
[1752049898856,1.6896008,661.92,661.49,1.6922208]
[1752049899156,1.6896008,661.92,661.48,1.6922208]
[1752049899561,1.6896008,661.93,661.47,1.6922208]
[1752049902363,1.6896008,661.94,661.46,1.6922208]
[1752049902565,1.6896008,661.94,661.47,1.6922208]
[1752049903862,1.6896008,661.93,661.46,1.6922208]
[1752049904062,1.6896008,661.94,661.46,1.6922208]
[1752049904262,1.6896008,661.94,661.47,1.6922208]
[1752049905966,1.6896008,661.94,661.46,1.6922208]
[1752049906469,1.6896008,661.93,661.47,1.6922208]
[1752049907267,1.6896008,661.94,661.47,1.6922208]
[1752049907470,1.6896008,661.93,661.47,1.6922208]
[1752049908573,1.6896008,661.92,661.49,1.6922208]
[1752049909473,1.6896008,661.91,661.52,1.6922208]
[1752049910673,2.2612738,662.04,661.41,2.397]
[1752049910874,1.6950844,661.91,661.52,1.69942]
[1752049911876,1.6950844,661.91,661.53,1.69942]
[1752049912176,1.6950844,661.9,661.53,1.69942]
[1752049913471,1.6950844,661.91,661.53,1.69942]
[1752049915477,1.6950844,661.9,661.54,1.966]
[1752049915772,1.6950844,661.89,661.55,1.69942]
[1752049915977,1.6950844,661.9,661.54,1.966]
[1752049917975,2.2612738,662.02,661.54,1.966]
[1752049918178,1.6950438,661.9,661.54,1.966]
[1752049923479,1.6950438,661.89,661.54,1.966]
[1752049925783,1.6950438,661.89,661.54,3.6653785]
[1752049927386,1.6950438,661.89,661.54,1.966]
[1752049931990,1.6950438,661.9,661.54,1.966]
[1752049937296,1.6950438,661.89,661.54,1.966]
[1752049938797,1.6950438,661.9,661.54,1.966]
[1752049941699,1.6950438,661.89,661.54,1.966]
[1752049942495,1.6950438,661.89,661.54,3.6653785]
[1752049944298,1.6950438,661.88,661.54,3.6653785]
[1752049946203,1.6950438,661.9,661.54,1.966]
[1752049951108,1.6950438,661.89,661.54,1.966]
[1752049951513,1.6950438,661.9,661.54,1.966]
[1752049955116,1.6950438,661.9,661.54,3.6653785]
[1752049955517,1.6950438,662.0,661.54,1.966]
[1752049955717,1.6950438,662.02,661.54,1.966]
[1752049955916,1.6950438,662.01,661.54,1.966]
[1752049956918,1.6950438,661.99,661.54,1.966]
[1752049957118,1.6950438,661.98,661.54,1.966]
[1752049957317,1.6950438,661.99,661.54,1.966]
[1752049959620,1.6950438,662.41,661.89,1.6993785]
[1752049959919,1.6950438,662.37,661.8,1.6993785]
[1752049960120,1.6950438,662.37,661.79,1.6993785]
[1752049960419,1.6950438,662.43,661.73,1.6993785]
[1752049960615,1.6950438,662.42,661.74,1.6993785]
[1752049961419,1.6950438,662.45,661.71,1.6993785]
[1752049961818,1.6950438,662.45,661.72,1.6993785]
[1752049962114,1.6950438,662.44,661.71,1.6993785]
[1752049962318,1.6950438,662.47,661.69,1.6993785]
[1752049962814,1.6950438,662.47,661.68,1.6993785]
[1752049963214,1.6950438,662.49,661.67,1.6993785]
[1752049964318,1.6950438,662.51,661.66,1.6993785]
[1752049965219,1.6950438,662.53,661.65,1.6993785]
[1752049966320,1.6950438,662.55,661.64,1.6993785]
[1752049966520,1.6950438,662.55,661.65,1.6993785]
[1752049967316,1.6950438,662.56,661.65,1.6993785]
[1752049968225,1.6950438,662.58,661.63,1.6993785]
[1752049969220,1.6950438,662.59,661.63,1.6993785]
[1752049969925,1.6950438,662.56,661.66,1.6993785]
[1752049970224,1.6950438,662.58,661.66,1.6993785]
[1752049970622,1.6950438,662.61,661.61,1.6993785]
[1752049971325,1.6950438,662.62,661.6,1.6993785]
[1752049972122,1.6950438,662.62,661.59,1.6993785]
[1752049973326,1.6950438,662.63,661.59,1.6993785]
[1752049974226,0.42796181,662.81,661.39,2.2666925]
[1752049974227,1.6950438,662.64,661.58,1.6993785]
[1752049974427,1.6950438,662.63,661.59,1.6993785]
[1752049974729,1.6950438,662.63,661.6,1.6993785]
[1752049975226,1.6950438,662.64,661.59,1.6993785]
[1752049976126,1.6950438,662.65,661.59,1.6993785]
[1752049976328,1.6950438,662.64,661.59,1.6993785]
[1752049976632,1.6950438,662.64,661.6,2.545]
[1752049977233,1.6950438,662.65,661.6,2.545]
[1752049978232,1.6950438,662.65,661.6,4.2443785]
[1752049979332,0.42796181,662.82,661.6,4.2443785]
[1752049979333,1.6950438,662.66,661.6,4.2443785]
[1752049979829,1.6950438,662.66,661.6,2.545]
[1752049980528,1.6950438,662.65,661.6,2.545]
[1752049980733,1.6950438,662.64,661.6,2.545]
[1752049981433,0.42796181,662.82,661.6,2.545]
[1752049981434,1.6950438,662.65,661.6,2.545]
[1752049981833,0.9825942,662.71,661.6,2.545]
[1752049981834,1.6950438,662.64,661.6,2.545]
[1752049982133,1.6950438,662.62,661.6,2.545]
[1752049983229,1.6950438,662.61,661.6,2.545]
[1752049983529,1.6950438,662.62,661.6,2.545]
[1752049984346,1.6950438,662.61,661.6,2.545]
[1752049986230,1.6950438,662.57,661.6,2.545]
[1752049990336,1.6950438,662.56,661.6,2.545]
[1752049991035,1.6950438,662.63,661.6,2.545]
[1752049991838,1.6950438,662.62,661.6,2.545]
[1752049992036,1.6950438,662.63,661.6,2.545]
[1752049992238,1.6950438,662.62,661.6,2.545]
[1752049992740,1.6950438,662.63,661.6,2.545]
[1752049993241,1.6950438,662.61,661.6,2.545]
[1752049994337,1.6950438,662.6,661.6,2.545]
[1752049995143,1.6950438,662.62,661.6,2.545]
[1752049995442,1.6950438,662.61,661.6,2.545]
[1752049998341,1.6950438,662.6,661.6,2.545]
[1752049998547,1.6950438,662.6,661.44,1.6993785]
[1752049999244,1.6950438,662.6,661.45,1.6993785]
[1752050000446,1.6950438,662.59,661.45,1.6993785]
[1752050000844,1.6950438,662.59,661.35,0.26294712]
[1752050000845,1.6950438,662.57,661.48,1.6993785]
[1752050002349,1.6950438,662.56,661.49,3.9233785]
[1752050003348,1.6950438,662.55,661.5,1.6993785]
[1752050004246,1.6950438,662.54,661.5,1.6993785]
[1752050004452,1.6950438,662.55,661.49,3.9233785]
[1752050004952,1.6950438,662.54,661.5,1.6993785]
[1752050005248,1.6950438,662.53,661.51,1.6993785]
[1752050006252,1.6950438,662.52,661.51,1.6993785]
[1752050006553,1.6950438,662.52,661.52,1.6993785]
[1752050007153,1.6950438,662.49,661.5,1.6993785]
[1752050007550,1.6950438,662.48,661.5,1.6993785]
[1752050008251,1.6950438,662.47,661.5,1.6993785]
[1752050009253,1.6950438,662.47,661.51,1.6993785]
[1752050009456,1.6950438,662.46,661.51,1.6993785]
[1752050010252,1.6950438,662.45,661.52,1.6993785]
[1752050010954,1.6950438,662.44,661.53,1.6993785]
[1752050011153,1.6950438,662.43,661.53,1.6993785]
[1752050012354,1.6950438,662.42,661.54,1.6993785]
[1752050013259,1.6950438,662.41,661.55,1.6993785]
[1752050014154,1.6950438,662.39,661.55,1.6993785]
[1752050014356,5.6531846,663.55,661.63,1.6993785]
[1752050014357,1.6950438,662.34,661.63,1.6993785]
[1752050014656,1.6950438,662.33,661.65,1.6993785]
[1752050015259,1.6950438,662.31,661.66,1.6993785]
[1752050016157,1.6950438,662.3,661.67,1.6993785]
[1752050016660,1.40487106,662.42,661.49,2.224]
[1752050016661,1.6950438,662.29,661.66,1.6993785]
[1752050017261,1.6950438,662.28,661.68,1.6993785]
[1752050018261,1.6950438,662.26,661.69,1.6993785]
[1752050019163,1.6950438,662.24,661.72,1.6993785]
[1752050019659,1.6950438,662.24,661.71,1.6993785]
[1752050021765,1.6950438,662.25,661.71,1.6993785]
[1752050022368,1.6950438,662.25,661.72,1.7]
[1752050022668,1.6950438,662.24,661.72,1.7]
[1752050023269,1.6950438,662.23,661.72,3.3993785]
[1752050023469,1.6950438,662.23,661.73,1.6993785]
[1752050025366,1.6950438,662.23,661.72,3.3993785]
[1752050025566,1.6950438,662.23,661.72,1.7]
[1752050025977,1.6950438,662.23,661.72,3.3993785]
[1752050026172,1.6950438,662.19,661.72,1.7]
[1752050029082,1.6950438,662.2,661.72,1.7]
[1752050029279,1.6950438,662.19,661.72,1.7]
[1752050029487,1.6950438,662.2,661.72,1.7]
[1752050029681,1.6950438,662.19,661.72,1.7]
[1752050032187,1.6950438,662.18,661.72,1.7]
[1752050035188,1.6950438,662.16,661.72,1.7]
[1752050039284,1.6950438,662.15,661.72,3.3993785]
[1752050041588,0.9821184,662.25,661.72,1.7]
[1752050041784,1.6921979,662.15,661.72,3.3964306]
[1752050041990,1.6921979,662.18,661.72,1.7]
[1752050050394,1.6921979,662.17,661.72,1.7]
[1752050051094,1.6921979,662.19,661.72,1.7]
[1752050051993,1.6921979,662.18,661.72,1.7]
[1752050056992,1.6921979,662.17,661.72,1.7]
[1752050057593,1.6921979,662.18,661.72,1.7]
[1752050058797,1.6921979,662.17,661.72,1.7]
[1752050060799,1.6921979,662.15,661.72,1.7]
[1752050062495,1.6921979,662.15,661.71,1.6964306]
[1752050062700,1.6921979,662.14,661.72,1.6964306]
[1752050063295,0.98241843,662.23,661.45,0.26286867]
[1752050063296,1.6921979,662.19,661.64,1.6964306]
[1752050065300,1.6921979,662.19,661.65,1.6964306]
[1752050065501,1.6921979,662.19,661.65,4.2664306]
[1752050066100,1.6921979,662.18,661.65,4.2664306]
[1752050069300,1.6921979,662.18,661.66,1.6964306]
[1752050073206,1.6921979,662.14,661.72,1.6964306]
[1752050074201,1.6921979,662.13,661.72,1.6964306]
[1752050074905,1.6921979,662.14,661.72,1.6964306]
[1752050075304,1.6921979,662.13,661.72,1.6964306]
[1752050076002,1.6921979,662.14,661.73,1.6964306]
[1752050076707,1.6921979,662.16,661.71,1.6964306]
[1752050077603,1.6921979,662.15,661.71,1.6964306]
[1752050082406,1.6921979,662.14,661.72,1.6964306]
[1752050084313,1.6921979,662.14,661.73,1.6964306]
[1752050084609,1.6921979,662.13,661.72,1.6964306]
[1752050085310,1.6921979,662.12,661.73,1.6964306]
[1752050086014,1.6921979,662.12,661.72,1.6964306]
[1752050086412,1.6921979,662.12,661.73,1.6964306]
[1752050086613,1.6921979,662.09,661.77,1.6964306]
[1752050089823,1.6921979,662.12,661.72,1.6964306]
[1752050094224,1.6921979,662.13,661.72,1.6964306]
[1752050096422,1.6921979,662.12,661.72,1.6964306]
[1752050099436,1.6921979,662.1,661.76,1.6964306]
[1752050101435,1.6921979,662.09,661.77,1.6964306]
[1752050119350,0.98465411,662.19,661.78,1.918]
[1752050119651,1.6921979,662.21,661.78,1.918]